lending/lending_fUSD_20250917
["ID","MTS","AMOUNT","RATE_DAILY","PERIOD"]
[385881689,1758089438070,-500.0,0.00028983,2]
[385881691,1758089438079,-151.0,0.00028983,2]
[385881693,1758089438088,-500.0,0.00028983,2]
[385881694,1758089438098,-151.0,0.00028983,2]
[385881697,1758089438108,-500.0,0.00028983,2]
[385881700,1758089438117,-151.0,0.00028983,2]
[385881703,1758089438126,-500.0,0.00028983,2]
[385881705,1758089438135,-151.0,0.00028983,2]
[385881707,1758089438145,-151.0,0.00028983,2]
[385881709,1758089438154,-500.0,0.00028983,2]
[385881711,1758089438164,-151.0,0.00028983,2]
[385881713,1758089438175,-151.0,0.00028983,2]
[385881715,1758089438184,-500.0,0.00028983,2]
[385881717,1758089438194,-151.0,0.00028983,2]
[385881719,1758089438204,-151.0,0.00028983,2]
[385881721,1758089438213,-500.0,0.00028983,2]
[385881723,1758089438222,-151.0,0.00028983,2]
[385881725,1758089438232,-151.0,0.00028983,2]
[385881727,1758089438241,-200.0,0.00028983,2]
[385881729,1758089438250,-151.0,0.00028983,2]
[385881731,1758089438259,-500.0,0.00028983,2]
[385881733,1758089438269,-151.0,0.00028983,2]
[385881735,1758089438278,-500.0,0.00028983,2]
[385881737,1758089438287,-151.0,0.00028983,2]
[385881739,1758089438296,-151.0,0.00028983,2]
[385881741,1758089438306,-500.0,0.00028983,2]
[385881743,1758089438315,-151.0,0.00028983,2]
[385881745,1758089438324,-500.0,0.00028983,2]
[385881747,1758089438333,-151.0,0.00028983,2]
[385881749,1758089438342,-500.0,0.00028983,2]
[385881751,1758089438352,-151.0,0.00028983,2]
[385881753,1758089438362,-500.0,0.00028983,2]
[385881755,1758089438371,-151.0,0.00028983,2]
[385881757,1758089438380,-500.0,0.00028983,2]
[385881759,1758089438393,-200.0,0.00028983,2]
[385881761,1758089438402,-200.0,0.00028983,2]
[385881763,1758089438411,-175.9071572,0.00028983,2]
[385881765,1758089438421,-172.29112405,0.00028999,2]
[385881767,1758089438432,-135748.50099371,0.00029,2]
[385881769,1758089438442,-906.66,0.00029037,2]
[385881771,1758089438451,-617.17317377,0.00029116,5]
[385881773,1758089438460,-150.0,0.00029125,7]
[385881775,1758089438469,-873.85779266,0.00029131,2]
[385881777,1758089438479,-1699.57,0.00029143,2]
[385881779,1758089438489,-587.0,0.00029227,2]
[385881781,1758089438499,-873.85779266,0.00029445,2]
[385881782,1758089438508,-2993.0963848,0.00029457,2]
[385881783,1758089438520,-2006.9036152,0.00029457,2]
[385881784,1758089438530,-1500.0,0.00029481,2]
[385881785,1758089438539,-165.84786636,0.00029531,2]
[385881786,1758089438551,-434.15213364,0.00029531,2]
[385881787,1758089438560,-200.0,0.00029531,2]
[385881788,1758089438569,-200.0,0.00029531,2]
[385881789,1758089438578,-200.0,0.000296,10]
[385881790,1758089438587,-280.66,0.00029604,2]
[385881792,1758089438596,-502.0,0.000297,2]
[385881793,1758089438605,-500.0,0.000297,10]
[385881794,1758089438614,-516.07479255,0.00029723,2]
[385881795,1758089438623,-277.3121,0.0002973,2]
[385881797,1758089438632,-213.18994792,0.00029739,2]
[385881799,1758089438641,-160.0,0.00029739,2]
[385881801,1758089438651,-160.0,0.00029739,2]
[385881803,1758089438660,-160.0,0.00029739,2]
[385881805,1758089438669,-279.33,0.0002976,2]
[385881807,1758089438679,-493.11703453,0.00029778,2]
[385881809,1758089438691,-506.88296547,0.00029778,2]
[385881811,1758089438701,-873.85779266,0.00029785,2]
[385881813,1758089438710,-11.93944864,0.000298,10]
[385881816,1758089438726,-788.06055136,0.000298,10]
[385881818,1758089438736,-7000.0,0.0002983,2]
[385881820,1758089438745,-150.0,0.00029839,2]
[385881822,1758089438754,-1100.0,0.000299,10]
[385881824,1758089438763,-904.733114,0.00029925,15]
[385881826,1758089438773,-547.68549791,0.00029925,20]
[385881828,1758089438782,-848.42341673,0.00029935,2]
[385881830,1758089438793,-4097.49408318,0.00029935,2]
[385881832,1758089438803,-13536.68097966,0.00029935,2]
[385881834,1758089438812,-873.85779266,0.00029977,2]
[385881836,1758089438821,-1000.0,0.0003,2]
[385881838,1758089438831,-22267.73,0.0003,7]
[385881840,1758089438841,-170.0,0.0003,14]
[385881842,1758089438850,-516.07479255,0.0003,7]
[385881844,1758089438860,-1012.0,0.0003,2]
[385881846,1758089438869,-37760.3688547,0.00030015,2]
[385881850,1758089438892,-1400.54756705,0.00030015,2]
[385881863,1758089439011,-1632.79954137,0.00030015,2]
[385881865,1758089439022,-999.438,0.00030015,2]
[385881874,1758089439090,-10193.98919375,0.00030015,2]
[385881876,1758089439101,-35162.0963186,0.00030015,2]
[385882007,1758089440330,-58640.0,0.00030015,2]
[385882123,1758089443461,-262.96937033,0.00030015,2]
[385882124,1758089443894,-395.91643799,0.00030015,2]
[385882163,1758089446251,-564.09836,0.00030015,2]
[385882164,1758089446633,-12088.9252544,0.00030015,2]
[385882186,1758090021866,1500.0,0.00027,120]
[385882187,1758090022238,1500.0,0.000286,120]
[385882192,1758090297423,159.51,0.00013156,2]
[385882193,1758090297613,159.51,0.00014618,2]
[385882194,1758090297871,159.51,0.0001608,2]
[385882195,1758090298023,159.51,0.00017542,2]
[385882196,1758090298233,159.51,0.00019004,2]
[385882197,1758090311548,11548.25202388,0.000154,2]
[385882212,1758090631833,-396.821671,0.00019799,2]
[385882213,1758090631843,-182.38745181,0.00019899,2]
[385882214,1758090631852,-1200.0,0.00019998,2]
[385882215,1758090631862,-850.0,0.00019998,2]
[385882216,1758090631871,-922.73372004,0.00019999,2]
[385882217,1758090631880,-500.0,0.00019999,2]
[385882218,1758090631889,-500.0,0.00019999,2]
[385882219,1758090631899,-500.0,0.00019999,2]
[385882220,1758090631909,-500.0,0.00019999,2]
[385882221,1758090631922,-500.0,0.00019999,2]
[385882222,1758090631932,-500.0,0.00019999,2]
[385882223,1758090631942,-168.48372661,0.00019999,2]
[385882224,1758090631951,-500.0,0.00019999,2]
[385882225,1758090631960,-500.0,0.00019999,2]
[385882226,1758090631969,-500.0,0.00019999,2]
[385882227,1758090631979,-500.0,0.00019999,2]
[385882228,1758090631992,-500.0,0.00019999,2]
[385882229,1758090632001,-500.0,0.00019999,2]
[385882230,1758090632011,-27548.58265334,0.0002,2]
[385882231,1758090632022,-803.51,0.0002,2]
[385882232,1758090632053,-376.18637619,0.0002,2]
[385882233,1758090632068,-769.7453081,0.0002,2]
[385882235,1758090632080,-597.27639643,0.0002,2]
[385882253,1758090632173,-11671.89455,0.0002,2]
[385882255,1758090632184,-3219.27289521,0.0002,2]
[385882257,1758090632193,-159.51,0.00020465,2]
[385882259,1758090632203,-293.0,0.00020998,2]
[385882261,1758090632212,-160.59,0.00021,2]
[385882263,1758090632222,-182.38745181,0.00021083,2]
[385882265,1758090632231,-250.0,0.00021183,2]
[385882267,1758090632240,-295.33405627,0.00021538,2]
[385882269,1758090632249,-250.0,0.00021658,2]
[385882271,1758090632258,-1680.0,0.0002188,2]
[385882273,1758090632267,-159.51,0.00021927,2]
[385882275,1758090632277,-1000.0,0.00022,30]
[385882277,1758090632286,-1000.0,0.00022,30]
[385882279,1758090632296,-1104.93143,0.00022,30]
[385882281,1758090632305,-500.0,0.0002245,2]
[385882283,1758090632315,-500.0,0.0002245,2]
[385882285,1758090632324,-481.57665824,0.0002245,2]
[385882287,1758090632335,-250.0,0.00022512,2]
[385882289,1758090632344,-1079.32016776,0.00022998,2]
[385882291,1758090632353,-1000.0,0.00022998,2]
[385882293,1758090632362,-159.51,0.00023389,2]
[385882295,1758090632371,-500.0,0.00023546,2]
[385882297,1758090632381,-1565.46,0.00023675,2]
[385882299,1758090632390,-1250.0,0.00023702,2]
[385882301,1758090632399,-1250.0,0.00023702,2]
[385882303,1758090632409,-159.46,0.00023726,2]
[385882305,1758090632419,-419.19,0.00023751,2]
[385882307,1758090632428,-2351.0,0.0002394,2]
[385882309,1758090632437,-5000.00613473,0.00024,5]
[385882311,1758090632446,-495.8,0.0002407,2]
[385882313,1758090632455,-166.87,0.00024658,2]
[385882315,1758090632466,-250.0,0.00024658,2]
[385882317,1758090632475,-342.9032,0.00024673,2]
[385882319,1758090632485,-256.05786004,0.00024685,2]
[385882321,1758090632497,-17662.48213996,0.00024685,2]
[385882323,1758090632506,-512.78221865,0.00024769,2]
[385882325,1758090632516,-150.0,0.00024784,2]
[385882327,1758090632525,-159.51,0.00024851,2]
[385882329,1758090632534,-200.0,0.00024875,2]
[385882331,1758090632544,-600.0,0.00024875,2]
[385882333,1758090632553,-151.0,0.00024875,2]
[385882335,1758090632562,-151.0,0.00024875,2]
[385882337,1758090632571,-151.0,0.00024875,2]
[385882339,1758090632580,-151.0,0.00024875,2]
[385882341,1758090632589,-200.0,0.00024875,2]
[385882343,1758090632598,-151.0,0.00024875,2]
[385882345,1758090632610,-151.0,0.00024875,2]
[385882347,1758090632619,-151.0,0.00024875,2]
[385882349,1758090632628,-151.0,0.00024875,2]
[385882351,1758090632637,-151.0,0.00024875,2]
[385882353,1758090632647,-151.0,0.00024875,2]
[385882355,1758090632656,-151.0,0.00024875,2]
[385882357,1758090632666,-165.86442737,0.00024875,2]
[385882359,1758090632676,-500.0,0.00024875,2]
[385882361,1758090632685,-500.0,0.00024875,2]
[385882363,1758090632694,-500.0,0.00024875,2]
[385882365,1758090632704,-500.0,0.00024875,2]
[385882367,1758090632717,-500.0,0.00024875,2]
[385882369,1758090632728,-500.0,0.00024875,2]
[385882371,1758090632738,-500.0,0.00024875,2]
[385882373,1758090632748,-500.0,0.00024875,2]
[385882375,1758090632757,-500.0,0.00024875,2]
[385882377,1758090632767,-500.0,0.00024875,2]
[385882379,1758090632776,-500.0,0.00024875,2]
[385882381,1758090632786,-500.0,0.00024875,2]
[385882383,1758090632795,-500.0,0.00024875,2]
[385882385,1758090632805,-151.0,0.00024875,2]
[385882387,1758090632814,-500.0,0.00024875,2]
[385882389,1758090632823,-151.0,0.00024875,2]
[385882391,1758090632832,-151.0,0.00024875,2]
[385882393,1758090632841,-151.0,0.00024875,2]
[385882395,1758090632850,-151.0,0.00024875,2]
[385882397,1758090632859,-151.0,0.00024875,2]
[385882399,1758090632868,-151.0,0.00024875,2]
[385882401,1758090632878,-151.0,0.00024875,2]
[385882403,1758090632887,-151.0,0.00024875,2]
[385882405,1758090632896,-151.0,0.00024875,2]
[385882407,1758090632906,-151.0,0.00024875,2]
[385882409,1758090632915,-151.0,0.00024875,2]
[385882411,1758090632924,-151.0,0.00024875,2]
[385882412,1758090632933,-151.0,0.00024875,2]
[385882414,1758090632943,-200.0,0.00024875,2]
[385882416,1758090632952,-500.0,0.00024875,2]
[385882419,1758090632962,-500.0,0.00024875,2]
[385882420,1758090632971,-500.0,0.00024875,2]
[385882422,1758090632982,-533.84080379,0.00024875,2]
[385882424,1758090632994,-35671.84526036,0.0002489,2]
[385882426,1758090633003,-516.12,0.00024898,2]
[385882428,1758090633012,-525.8,0.00024899,2]
[385882430,1758090633022,-7674.0316403,0.000249,2]
[385882434,1758090633051,-3904.8056581,0.000249,2]
[385882794,1758090639691,-188.21839748,0.000249,2]
[385882796,1758090639700,-117.85060252,0.000251,7]
[385882811,1758090639835,-82.14939748,0.000251,7]
[385882813,1758090639845,-4732.54,0.00025206,2]
[385882815,1758090639855,-200.0,0.00025423,2]
[385882817,1758090639865,-600.0,0.00025423,2]
[385882819,1758090639875,-200.0,0.00025423,2]
[385882821,1758090639884,-1365.69,0.00025603,2]
[385882823,1758090639893,-501.09720928,0.0002595,2]
[385882825,1758090639902,-517.77786663,0.0002595,2]
[385882827,1758090639911,-200.0,0.00025971,2]
[385882829,1758090639921,-600.0,0.00025971,2]
[385882832,1758090639932,-200.0,0.00025971,2]
[385882834,1758090639942,-5976.80864589,0.00026,2]
[385882836,1758090639951,-200.0,0.000261,7]
[385882838,1758090639961,-2588.0,0.00026193,2]
[385882840,1758090639971,-186.22,0.00026285,2]
[385882842,1758090639981,-159.51,0.00026313,2]
[385882844,1758090639995,-666.0,0.00026445,3]
[385882846,1758090640004,-200.0,0.00026519,2]
[385882848,1758090640017,-600.0,0.00026519,2]
[385882850,1758090640032,-200.0,0.00026519,2]
[385882852,1758090640048,-366.95,0.00026829,2]
[385882854,1758090640057,-7751.20378665,0.00026839,2]
[385882856,1758090640070,-1622.75463397,0.00026839,2]
[385882945,1758090642866,-13435.49157938,0.00026839,2]
[385882946,1758090642875,-366.95,0.0002699,2]
[385882947,1758090642885,-48051.02209177,0.00027,2]
[385882948,1758090642894,-250.0,0.00027,2]
[385882949,1758090642903,-1014.95650947,0.00027,2]
[385882950,1758090642913,-2975.30465157,0.00027,15]
[385882951,1758090642922,-200.0,0.00027067,2]
[385882952,1758090642932,-600.0,0.00027067,2]
[385882953,1758090642941,-200.0,0.00027067,2]
[385882954,1758090642951,-200.0,0.000271,7]
[385882955,1758090642960,-290.46,0.00027135,2]
[385882956,1758090642970,-565.41046,0.00027137,2]
[385882957,1758090642980,-177.73175163,0.00027345,4]
[385882958,1758090642993,-150.00000001,0.00027345,4]
[385882959,1758090643002,-150.0,0.00027345,4]
[385882960,1758090643011,-257.6480191,0.00027345,4]
[385882961,1758090643020,-150.0,0.00027345,4]
[385882962,1758090643277,-198.01634957,0.00027345,4]
[385882963,1758090643287,-182.83617084,0.00027345,4]
[385882964,1758090643296,-230.93926353,0.00027345,4]
[385882965,1758090643305,-177.33140807,0.00027345,4]
[385882966,1758090643314,-154.05139023,0.00027345,4]
[385882967,1758090643323,-4033.59123761,0.0002739,2]
[385882968,1758090643332,-7967.95907512,0.0002739,2]
[385882970,1758090643341,-3181.02322858,0.0002739,2]
[385882972,1758090643350,-425.89009394,0.00027397,5]
[385882974,1758090643359,-400.0,0.00027397,5]
[385882976,1758090643369,-400.0,0.00027397,5]
[385882977,1758090643377,-400.0,0.00027397,5]
[385882978,1758090643386,-400.5496101,0.00027397,3]
[385882979,1758090643395,-401.37518798,0.00027397,5]
[385882980,1758090643404,-400.0,0.00027397,5]
[385882981,1758090643413,-400.0,0.00027397,5]
[385882982,1758090643422,-400.0,0.00027397,5]
[385882983,1758090643431,-402.00843016,0.00027397,5]
[385882984,1758090643439,-402.1683288,0.00027397,5]
[385882985,1758090643449,-178.32682931,0.00027397,2]
[385882986,1758090643458,-194.83174507,0.00027397,2]
[385882987,1758090643467,-401.56760307,0.00027397,5]
[385882988,1758090643477,-653.22,0.00027397,5]
[385882989,1758090643486,-400.0,0.00027397,5]
[385882990,1758090643496,-361.15284052,0.00027397,5]
[385882991,1758090643505,-400.0,0.00027397,5]
[385882992,1758090643514,-280.29855827,0.00027397,5]
[385882993,1758090643523,-407.1701774,0.00027397,5]
[385882994,1758090643532,-400.0,0.00027397,5]
[385882995,1758090643541,-512.61420724,0.00027397,5]
[385882996,1758090643550,-400.0,0.00027397,5]
[385882997,1758090643559,-400.0,0.00027397,5]
[385882998,1758090643568,-400.0,0.00027397,5]
[385882999,1758090643577,-400.0,0.00027397,5]
[385883000,1758090643586,-400.0,0.00027397,5]
[385883001,1758090643595,-400.0,0.00027397,5]
[385883002,1758090643604,-400.0,0.00027397,5]
[385883003,1758090643614,-400.0,0.00027397,5]
[385883004,1758090643623,-697.12,0.00027397,5]
[385883005,1758090643632,-400.0,0.00027397,5]
[385883006,1758090643641,-402.66085529,0.00027397,5]
[385883007,1758090643651,-400.0,0.00027397,5]
[385883008,1758090643660,-400.0,0.00027397,5]
[385883009,1758090643669,-407.27134247,0.00027397,5]
[385883010,1758090643678,-400.0,0.00027397,5]
[385883011,1758090643687,-457.35795484,0.00027397,5]
[385883012,1758090643696,-400.0,0.00027397,5]
[385883013,1758090643705,-300.0,0.00027397,2]
[385883014,1758090643714,-162.43,0.00027425,30]
[385883015,1758090643723,-197.31735642,0.000275,2]
[385883016,1758090643733,-538.96959634,0.000275,2]
[385883017,1758090643744,-366.95,0.00027614,2]
[385883018,1758090643755,-207.4,0.00027614,2]
[385883019,1758090643765,-200.0,0.00027615,2]
[385883020,1758090643774,-600.0,0.00027615,2]
[385883021,1758090643784,-200.0,0.00027615,2]
[385883022,1758090643793,-29428.64,0.00027624,2]
[385883023,1758090643803,-400.0,0.00027671,5]
[385883024,1758090643812,-400.0,0.00027671,5]
[385883025,1758090643821,-400.0,0.00027671,5]
[385883026,1758090643830,-400.0,0.00027671,5]
[385883027,1758090643840,-400.0,0.00027671,5]
[385883028,1758090643848,-400.0,0.00027671,5]
[385883029,1758090643858,-653.22,0.00027671,5]
[385883030,1758090643867,-400.0,0.00027671,5]
[385883031,1758090643876,-400.0,0.00027671,5]
[385883032,1758090643885,-400.0,0.00027671,5]
[385883033,1758090643895,-400.0,0.00027671,5]
[385883034,1758090643905,-400.0,0.00027671,5]
[385883035,1758090643914,-400.0,0.00027671,5]
[385883036,1758090643923,-402.94053322,0.00027671,5]
[385883037,1758090643932,-400.0,0.00027671,5]
[385883038,1758090643942,-400.0,0.00027671,5]
[385883039,1758090643951,-400.0,0.00027671,5]
[385883040,1758090643960,-697.12,0.00027671,5]
[385883041,1758090643969,-400.0,0.00027671,5]
[385883042,1758090643978,-400.0,0.00027671,5]
[385883043,1758090643991,-404.70837468,0.00027671,5]
[385883044,1758090644000,-400.0,0.00027671,5]
[385883045,1758090644009,-404.14769282,0.00027671,5]
[385883046,1758090644018,-400.0,0.00027671,5]
[385883047,1758090644027,-1500.0,0.00027859,2]
[385883048,1758090644035,-400.0,0.00027945,5]
[385883049,1758090644044,-400.0,0.00027945,5]
[385883050,1758090644053,-259.19440198,0.00027945,5]
[385883051,1758090644063,-400.0,0.00027945,5]
[385883052,1758090644072,-400.0,0.00027945,5]
[385883053,1758090644081,-402.80611286,0.00027945,5]
[385883054,1758090644090,-400.0,0.00027945,5]
[385883055,1758090644099,-653.22,0.00027945,5]
[385883056,1758090644108,-400.0,0.00027945,5]
[385883057,1758090644118,-400.0,0.00027945,5]
[385883058,1758090644127,-400.0,0.00027945,5]
[385883059,1758090644136,-400.0,0.00027945,5]
[385883060,1758090644145,-400.0,0.00027945,5]
[385883061,1758090644154,-400.0,0.00027945,5]
[385883062,1758090644163,-400.0,0.00027945,5]
[385883063,1758090644172,-400.0,0.00027945,5]
[385883064,1758090644180,-697.12,0.00027945,5]
[385883065,1758090644190,-248.39160558,0.00027945,5]
[385883066,1758090644198,-400.0,0.00027945,5]
[385883067,1758090644207,-400.0,0.00027945,5]
[385883068,1758090644216,-400.0,0.00027945,5]
[385883069,1758090644225,-516.51504522,0.0002801,2]
[385883070,1758090644235,-180.13292017,0.00028148,2]
[385883071,1758090644243,-210.00811648,0.00028163,2]
[385883072,1758090644254,-600.0,0.00028163,2]
[385883073,1758090644263,-200.0,0.00028163,2]
[385883074,1758090644272,-150.0,0.00028194,7]
[385883075,1758090644281,-175.38,0.00028212,2]
[385883076,1758090644290,-400.0,0.00028219,5]
[385883077,1758090644298,-400.0,0.00028219,5]
[385883078,1758090644307,-400.0,0.00028219,5]
[385883079,1758090644316,-400.0,0.00028219,5]
[385883080,1758090644325,-653.22,0.00028219,5]
[385883081,1758090644334,-400.0,0.00028219,5]
[385883082,1758090644343,-400.0,0.00028219,5]
[385883083,1758090644352,-400.0,0.00028219,5]
[385883084,1758090644361,-400.0,0.00028219,5]
[385883085,1758090644370,-400.0,0.00028219,5]
[385883086,1758090644382,-400.0,0.00028219,5]
[385883087,1758090644392,-400.0,0.00028219,5]
[385883088,1758090644401,-400.0,0.00028219,5]
[385883089,1758090644410,-697.12,0.00028219,5]
[385883090,1758090644419,-400.0,0.00028219,5]
[385883091,1758090644429,-400.0,0.00028219,5]
[385883092,1758090644438,-400.0,0.00028219,5]
[385883093,1758090644447,-204.0,0.0002822,2]
[385883094,1758090644457,-186.22,0.00028257,2]
[385883095,1758090644467,-290.46,0.00028492,2]
[385883096,1758090644475,-400.0,0.00028493,5]
[385883097,1758090644483,-400.0,0.00028493,5]
[385883098,1758090644492,-400.0,0.00028493,5]
[385883099,1758090644502,-400.0,0.00028493,5]
[385883100,1758090644511,-653.22,0.00028493,5]
[385883101,1758090644522,-400.0,0.00028493,5]
[385883102,1758090644531,-400.0,0.00028493,5]
[385883103,1758090644540,-400.0,0.00028493,5]
[385883104,1758090644549,-400.0,0.00028493,5]
[385883105,1758090644559,-400.0,0.00028493,5]
[385883106,1758090644568,-400.0,0.00028493,5]
[385883107,1758090644577,-400.0,0.00028493,5]
[385883108,1758090644587,-400.0,0.00028493,5]
[385883109,1758090644596,-697.12,0.00028493,5]
[385883110,1758090644607,-400.0,0.00028493,5]
[385883111,1758090644617,-400.0,0.00028493,5]
[385883112,1758090644628,-400.0,0.00028493,5]
[385883113,1758090644639,-1301.1,0.00028508,2]
[385883114,1758090644648,-2227.84,0.00028594,2]
[385883115,1758090644657,-538.0,0.000286,2]
[385883116,1758090644666,-366.95,0.00028616,2]
[385883117,1758090644675,-603.22,0.00028626,5]
[385883118,1758090644684,-594.48,0.00028626,5]
[385883119,1758090644693,-1140.59,0.00028626,5]
[385883120,1758090644702,-956.88,0.00028626,5]
[385883121,1758090644712,-1326.1,0.00028626,5]
[385883122,1758090644721,-579.08,0.00028626,5]
[385883123,1758090644732,-400.0,0.00028626,5]
[385883124,1758090644741,-965.95,0.00028626,5]
[385883125,1758090644750,-924.75,0.00028626,5]
[385883126,1758090644760,-721.32,0.00028626,5]
[385883127,1758090644769,-911.76,0.00028626,5]
[385883128,1758090644778,-868.11,0.00028626,5]
[385883129,1758090644787,-988.86,0.00028626,5]
[385883130,1758090644796,-795.63,0.00028626,5]
[385883131,1758090644805,-2158.02,0.00028626,5]
[385883132,1758090644814,-569.87,0.00028626,5]
[385883133,1758090644823,-400.0,0.00028626,5]
[385883134,1758090644832,-592.55,0.00028626,5]
[385883135,1758090644841,-3891.7,0.00028626,5]
[385883136,1758090644851,-535.18,0.00028626,5]
[385883137,1758090644860,-574.45,0.00028626,5]
[385883138,1758090644869,-202.516113,0.00028626,5]
[385883139,1758090644879,-211.500664,0.00028626,5]
[385883140,1758090644888,-1494.76,0.00028626,5]
[385883141,1758090644898,-160.380622,0.00028626,5]
[385883142,1758090644908,-474.55,0.00028626,5]
[385883143,1758090644917,-214.938212,0.00028626,5]
[385883144,1758090644926,-6232.04360161,0.00028627,2]
[385883147,1758090645656,-400.0,0.00027397,5]
[385883148,1758090645666,-400.0,0.00027397,5]
[385883149,1758090645675,-400.0,0.00027397,5]
[385883150,1758090645683,-83.16695202,0.00027671,5]
[385883151,1758090645860,-316.83304798,0.00027671,5]
[385883152,1758090645870,-407.92594427,0.00027671,5]
[385883154,1758090645879,-400.0,0.00027671,5]
[385883155,1758090645888,-400.0,0.00027945,5]
[385883156,1758090645897,-400.0,0.00027945,5]
[385883157,1758090645907,-400.0,0.00028219,5]
[385883158,1758090645918,-400.0,0.00028219,5]
[385883159,1758090645928,-400.0,0.00028493,5]
[385883160,1758090645937,-400.0,0.00028493,5]
[385883161,1758090645946,-357.832795,0.00028626,5]
[385883162,1758090645956,-5997.22510299,0.00028627,2]
[385883163,1758090645965,-2943.35601834,0.00028627,2]
[385883164,1758090645974,-814.2598026,0.00028627,2]
[385883165,1758090645984,-197.958219,0.00028667,2]
[385883166,1758090645996,-500.0,0.0002868,5]
[385883167,1758090646006,-366.95,0.00028707,2]
[385883168,1758090646016,-600.0,0.00028711,2]
[385883169,1758090646025,-200.0,0.00028711,2]
[385883170,1758090646036,-36920.0714953,0.00028717,2]
[385883171,1758090646046,-16569.36409862,0.00028727,2]
[385883172,1758090646066,-11181.172768,0.00028727,2]
[385883173,1758090646077,-20005.837741,0.00028727,2]
[385883211,1758091832562,-151.0,0.00023665,2]
[385883212,1758091832572,-151.0,0.00023722,2]
[385883213,1758091832581,-121.79673282,0.00024658,2]
[385883214,1758091832592,-46.28326718,0.00024658,2]
[385883215,1758091832602,-500.0,0.000248,2]
[385883216,1758091832612,-152.58,0.000248,2]
[385883217,1758091832622,-423.62633282,0.00024899,2]
[385883218,1758091832634,-463.6690101,0.00024899,2]
[385883219,1758091832645,-257.30031716,0.00024899,2]
[385883220,1758091832675,-55.40433992,0.00024899,2]
[385883221,1758091832684,-590.32875432,0.000249,2]
[385883222,1758091837910,-570.56996882,0.000249,2]
[385883223,1758091838107,-4918.8,0.000249,2]
[385883230,1758091839922,-1175.78600021,0.000249,2]
[385883231,1758091839934,-515.12072502,0.000249,2]
[385883232,1758091839945,-327.84001672,0.000249,2]
[385883233,1758091840105,-383.74910156,0.000249,2]
[385883255,1758091843339,-2990.28377994,0.000249,2]
[385883256,1758091843348,-150.0,0.00025373,2]
[385883257,1758091843357,-150.0,0.00025373,2]
[385883258,1758091843366,-150.0,0.00025373,2]
[385883259,1758091843375,-150.0,0.00025373,2]
[385883263,1758091843639,-150.0,0.00025373,2]
[385883264,1758091843648,-150.0,0.00025373,2]
[385883265,1758091843658,-250.0,0.00025943,2]
[385883266,1758091843668,-150.0,0.00025954,2]
[385883267,1758091843677,-200.0,0.00026258,2]
[385883268,1758091843686,-161.87,0.0002631,2]
[385883269,1758091843696,-327.84001672,0.00026435,2]
[385883270,1758091843706,-500.0,0.00026435,2]
[385883271,1758091843715,-185.38708073,0.00026435,2]
[385883272,1758091843724,-977.16,0.00026436,2]
[385883273,1758091843733,-1570.64,0.00026437,2]
[385883274,1758091843743,-700.36,0.00026461,2]
[385883275,1758091843752,-9369.53,0.00026497,2]
[385883276,1758091843761,-682.84,0.00026519,2]
[385883277,1758091843770,-666.0,0.00026614,3]